[Event "MČR juniorů a juniorek v rapid šachu 2023"]
[Site "Czech Republic"]
[Date "2023.09.24"]
[Round "9.32"]
[White "Bela, Lukas"]
[Black "Martinkovicova, Nela"]
[Result "0-1"]
[TimeControl "20 min + 5 sec per move"]
[WhiteFideId "23738545"]
[BlackFideId "23715596"]
[WhiteElo "1297"]
[BlackElo "1049"]

1. e4 {[%clk 00:20:08]} {[%emt 00:00:02]} e5 {[%clk 00:20:09]} {[%emt
00:00:02]} 2. Nf3 {[%clk 00:20:11]} Nf6 {[%clk 00:20:13]} {[%emt 00:00:01]} 3.
d3 {[%clk 00:20:15]} {[%emt 00:00:02]} Nc6 {[%clk 00:20:01]} {[%emt 00:00:16]}
4. a3 {[%clk 00:20:17]} {[%emt 00:00:04]} Bc5 {[%clk 00:20:02]} {[%emt
00:00:03]} 5. Nc3 {[%clk 00:19:54]} {[%emt 00:00:28]} d6 {[%clk 00:19:53]}
{[%emt 00:00:14]} 6. Be2 {[%clk 00:19:31]} {[%emt 00:00:28]} Bg4 {[%clk
00:19:51]} {[%emt 00:00:08]} 7. O-O {[%clk 00:19:22]} {[%emt 00:00:14]} Nd4
{[%clk 00:19:44]} {[%emt 00:00:12]} 8. Nxd4 {[%clk 00:19:05]} {[%emt 00:00:22]}
Bxe2 {[%clk 00:19:20]} {[%emt 00:00:29]} 9. Qxe2 {[%clk 00:18:35]} {[%emt
00:00:36]} Bxd4 {[%clk 00:19:03]} {[%emt 00:00:22]} 10. Bd2 {[%clk 00:18:01]}
{[%emt 00:00:39]} h5 {[%clk 00:18:51]} {[%emt 00:00:16]} 11. Be3 {[%clk
00:17:24]} {[%emt 00:00:43]} Bxc3 {[%clk 00:18:19]} {[%emt 00:00:37]} 12. bxc3
{[%clk 00:17:27]} {[%emt 00:00:02]} Ng4 {[%clk 00:18:05]} {[%emt 00:00:18]} 13.
g3 {[%clk 00:16:41]} {[%emt 00:00:51]} g6 {[%clk 00:17:32]} {[%emt 00:00:38]}
14. h3 {[%clk 00:16:14]} {[%emt 00:00:33]} Nf6 {[%clk 00:17:13]} {[%emt
00:00:22]} 15. Rab1 {[%clk 00:15:58]} {[%emt 00:00:21]} b6 {[%clk 00:17:12]}
{[%emt 00:00:07]} 16. f3 {[%clk 00:15:25]} {[%emt 00:00:38]} Nd7 {[%clk
00:16:42]} {[%emt 00:00:34]} 17. f4 {[%emt 00:00:43]} Qe7 {[%clk 00:16:05]}
{[%emt 00:00:38]} 18. f5 {[%clk 00:14:09]} {[%emt 00:00:48]} O-O-O {[%clk
00:15:33]} {[%emt 00:00:37]} 19. f6 {[%clk 00:13:46]} {[%emt 00:00:28]} Qe6
{[%clk 00:14:50]} {[%emt 00:00:45]} 20. c4 {[%clk 00:13:29]} {[%emt 00:00:26]}
Qxh3 {[%clk 00:14:39]} {[%emt 00:00:15]} 21. Qh2 {[%clk 00:12:15]} {[%emt
00:01:19]} Qxh2+ {[%clk 00:14:19]} {[%emt 00:00:25]} 22. Kxh2 {[%clk 00:12:18]}
{[%emt 00:00:02]} Rdg8 {[%clk 00:14:05]} {[%emt 00:00:19]} 23. Bg5 {[%clk
00:11:53]} {[%emt 00:00:30]} Nc5 {[%clk 00:13:38]} {[%emt 00:00:33]} 24. c3
{[%emt 00:01:31]} Nxd3 {[%clk 00:13:15]} {[%emt 00:00:09]} 25. Be3 {[%clk
00:09:59]} {[%emt 00:00:52]} Nc5 {[%clk 00:12:45]} {[%emt 00:00:35]} 26. Bxc5
{[%clk 00:09:42]} {[%emt 00:00:22]} dxc5 {[%clk 00:12:46]} {[%emt 00:00:04]} 27.
Rbd1 {[%clk 00:09:35]} {[%emt 00:00:12]} Rd8 {[%clk 00:12:45]} {[%emt
00:00:06]} 28. Rd5 {[%clk 00:08:46]} {[%emt 00:00:54]} Rxd5 {[%clk 00:12:38]}
{[%emt 00:00:13]} 29. exd5 {[%clk 00:08:46]} {[%emt 00:00:05]} Rd8 {[%clk
00:12:12]} {[%emt 00:00:28]} 30. Re1 {[%clk 00:08:36]} {[%emt 00:00:17]} Re8
{[%clk 00:12:08]} {[%emt 00:00:09]} 31. Kh3 {[%clk 00:08:24]} {[%emt 00:00:17]}
Kd7 {[%clk 00:12:07]} {[%emt 00:00:06]} 32. g4 {[%clk 00:08:19]} {[%emt
00:00:10]} hxg4+ {[%clk 00:12:01]} {[%emt 00:00:11]} 33. Kxg4 {[%clk 00:08:22]}
{[%emt 00:00:02]} c6 {[%clk 00:11:56]} {[%emt 00:00:10]} 34. Rd1 {[%clk
00:08:15]} {[%emt 00:00:13]} e4 {[%clk 00:11:34]} {[%emt 00:00:26]} 35. Re1
{[%clk 00:08:04]} {[%emt 00:00:16]} cxd5 {[%clk 00:11:32]} {[%emt 00:00:07]} 36.
cxd5 {[%clk 00:08:07]} {[%emt 00:00:02]} Kd6 {[%clk 00:11:30]} {[%emt
00:00:07]} 37. c4 {[%clk 00:08:09]} {[%emt 00:00:03]} Ke5 {[%clk 00:11:21]}
{[%emt 00:00:14]} 38. Kg3 {[%clk 00:07:51]} {[%emt 00:00:23]} Kxf6 {[%clk
00:11:07]} {[%emt 00:00:19]} 39. Kf4 {[%clk 00:07:54]} {[%emt 00:00:03]} g5+
{[%clk 00:11:01]} {[%emt 00:00:10]} 40. Kg3 {[%clk 00:07:36]} {[%emt 00:00:23]}
Kf5 {[%clk 00:10:54]} {[%emt 00:00:12]} 41. d6 {[%clk 00:07:38]} {[%emt
00:00:02]} Rd8 {[%clk 00:10:36]} {[%emt 00:00:22]} 42. Rf1+ {[%clk 00:07:38]}
{[%emt 00:00:06]} Ke6 {[%clk 00:10:32]} {[%emt 00:00:09]} 43. Re1 {[%clk
00:07:17]} {[%emt 00:00:26]} f5 {[%clk 00:10:23]} {[%emt 00:00:14]} 44. Rh1
{[%clk 00:06:57]} {[%emt 00:00:25]} Rxd6 {[%clk 00:10:18]} {[%emt 00:00:10]} 45.
Rh6+ {[%clk 00:06:58]} {[%emt 00:00:04]} Ke5 {[%clk 00:10:18]} {[%emt
00:00:05]} 0-1

[Event "MČR juniorů a juniorek v rapid šachu 2023"]
[Site "Czech Republic"]
[Date "2023.09.24"]
[Round "9.34"]
[White "Zadrapova, Gabriela"]
[Black "Macova, Marketa"]
[Result "0-1"]
[TimeControl "20 min + 5 sec per move"]
[WhiteFideId "23753056"]
[BlackFideId "23715588"]
[WhiteElo "1206"]
[BlackElo "1228"]

1. e4 {[%clk 00:20:07]} {[%emt 00:00:02]} e5 {[%clk 00:20:10]} {[%emt
00:00:01]} 2. Nf3 {[%clk 00:20:09]} {[%emt 00:00:03]} Nc6 {[%clk 00:20:14]} 3.
Nc3 {[%clk 00:20:11]} {[%emt 00:00:03]} Nf6 {[%clk 00:20:17]} {[%emt 00:00:03]}
4. Bb5 {[%clk 00:20:12]} {[%emt 00:00:03]} Bc5 {[%clk 00:20:07]} {[%emt
00:00:15]} 5. Nxe5 {[%clk 00:20:15]} {[%emt 00:00:02]} Nxe5 {[%clk 00:20:01]}
{[%emt 00:00:11]} 6. d4 {[%clk 00:20:18]} {[%emt 00:00:02]} Bd6 {[%clk
00:19:56]} {[%emt 00:00:11]} 7. dxe5 {[%clk 00:20:20]} {[%emt 00:00:03]} Bxe5
{[%clk 00:19:59]} {[%emt 00:00:01]} 8. O-O {[%clk 00:20:00]} {[%emt 00:00:25]}
O-O {[%clk 00:20:01]} {[%emt 00:00:03]} 9. Re1 {[%clk 00:19:56]} {[%emt
00:00:09]} c6 {[%clk 00:18:42]} {[%emt 00:01:25]} 10. Ba4 {[%clk 00:19:35]}
{[%emt 00:00:26]} Re8 {[%clk 00:17:49]} {[%emt 00:00:58]} 11. f4 {[%clk
00:19:27]} {[%emt 00:00:12]} Bxc3 {[%clk 00:16:35]} {[%emt 00:01:20]} 12. bxc3
{[%clk 00:19:20]} {[%emt 00:00:11]} Rxe4 {[%clk 00:15:49]} {[%emt 00:00:51]} 13.
Rxe4 {[%clk 00:19:21]} {[%emt 00:00:04]} Nxe4 {[%clk 00:15:52]} {[%emt
00:00:03]} 14. Qd3 {[%clk 00:19:12]} {[%emt 00:00:13]} d5 {[%clk 00:15:08]}
{[%emt 00:00:49]} 15. c4 {[%clk 00:18:47]} {[%emt 00:00:30]} Qa5 {[%clk
00:14:06]} {[%emt 00:01:08]} 16. Be3 {[%clk 00:17:37]} {[%emt 00:01:15]} Qxa4
{[%clk 00:13:36]} {[%emt 00:00:35]} 17. cxd5 {[%clk 00:17:32]} {[%emt
00:00:09]} Bf5 {[%clk 00:10:10]} {[%emt 00:03:31]} 18. dxc6 {[%clk 00:17:08]}
{[%emt 00:00:29]} Qxc6 {[%clk 00:10:10]} {[%emt 00:00:05]} 19. Rd1 {[%clk
00:17:05]} {[%emt 00:00:07]} h6 {[%clk 00:09:59]} {[%emt 00:00:17]} 20. Qd4
{[%clk 00:16:48]} {[%emt 00:00:21]} Nc3 {[%clk 00:08:09]} {[%emt 00:01:56]} 21.
Rd2 {[%clk 00:16:18]} {[%emt 00:00:35]} Nxa2 {[%clk 00:07:31]} {[%emt
00:00:44]} 22. Qe5 {[%clk 00:16:06]} {[%emt 00:00:16]} Qg6 {[%clk 00:06:40]}
{[%emt 00:00:55]} 23. c4 {[%clk 00:15:54]} {[%emt 00:00:18]} Nb4 {[%clk
00:06:24]} {[%emt 00:00:22]} 24. Qb5 {[%clk 00:15:44]} {[%emt 00:00:13]} Nc6
{[%clk 00:04:53]} {[%emt 00:01:37]} 25. Qxb7 {[%clk 00:15:29]} {[%emt
00:00:20]} Rd8 {[%clk 00:04:22]} {[%emt 00:00:36]} 26. Rxd8+ {[%clk 00:15:21]}
{[%emt 00:00:13]} Nxd8 {[%clk 00:04:26]} {[%emt 00:00:02]} 27. Qxa7 {[%clk
00:15:20]} {[%emt 00:00:05]} Bh3 {[%clk 00:04:04]} {[%emt 00:00:27]} 28. g3
{[%clk 00:15:21]} {[%emt 00:00:03]} Qb1+ {[%clk 00:03:23]} {[%emt 00:00:47]} 29.
Kf2 {[%clk 00:15:14]} {[%emt 00:00:11]} Qf1# {[%clk 00:03:20]} {[%emt
00:00:09]} 0-1